bitfinex/quotes_BTCUSD_20250508
["timestamp","ask_amount","ask_price","bid_price","bid_amount"]
[1746700528329,0.002,99826.0,99825.0,4.15060535]
[1746700528528,0.001,99826.0,99825.0,4.10354461]
[1746700528962,0.001,99826.0,99825.0,4.08854461]
[1746700529145,0.002,99826.0,99825.0,4.08854461]
[1746700530111,0.002,99826.0,99825.0,1.73304461]
[1746700530336,0.002,99826.0,99825.0,1.59457608]
[1746700530511,0.002,99826.0,99825.0,1.39304461]
[1746700531355,0.002,99826.0,99825.0,1.40576261]
[1746700532294,0.002,99826.0,99825.0,1.74576261]
[1746700532468,0.002,99826.0,99825.0,1.53406261]
[1746700532669,0.002,99826.0,99825.0,1.40016261]
[1746700533515,0.002,99826.0,99825.0,0.55306861]
[1746700533725,0.002,99826.0,99825.0,8.09059761]
[1746700537059,0.002,99826.0,99825.0,7.17943061]
[1746700537260,0.002,99826.0,99825.0,3.64498261]
[1746700537677,0.002,99826.0,99825.0,6.85007161]
[1746700538592,0.002,99826.0,99825.0,6.46347161]
[1746700538847,0.002,99826.0,99825.0,5.46367161]
[1746700539723,0.002,99826.0,99825.0,4.78256461]
[1746700540056,0.002,99826.0,99825.0,4.75048861]
[1746700540278,0.002,99826.0,99825.0,4.66127861]
[1746700541150,0.004,99826.0,99825.0,4.66127861]
[1746700541568,0.004,99826.0,99825.0,3.67657861]
[1746700542206,0.004,99826.0,99825.0,2.70330661]
[1746700542415,0.2043486,99826.0,99825.0,2.260754]
[1746700542667,0.2357486,99826.0,99825.0,1.245354]
[1746700542879,0.2357486,99826.0,99825.0,0.900054]
[1746700543096,0.25451691,99826.0,99825.0,0.900054]
[1746700544734,0.25451691,99826.0,99825.0,0.880008]
[1746700547063,0.05416831,99826.0,99825.0,0.880008]
[1746700548342,0.05416831,99826.0,99825.0,0.352718]
[1746700548548,0.05416831,99826.0,99825.0,1.175726]
[1746700548713,0.05416831,99826.0,99825.0,1.15267]
[1746700549311,0.05416831,99826.0,99825.0,1.142646]
[1746700549518,0.05416831,99826.0,99825.0,1.106558]
[1746700549956,0.05416831,99826.0,99825.0,1.076484]
[1746700550212,0.05416831,99826.0,99825.0,1.026362]
[1746700550404,0.05416831,99826.0,99825.0,1.008318]
[1746700550877,0.05416831,99826.0,99825.0,0.971228]
[1746700551295,0.05400936,99826.0,99825.0,0.971228]
[1746700551692,0.03770936,99826.0,99825.0,0.971228]
[1746700551998,0.00384105,99826.0,99825.0,0.971228]
[1746700552711,0.00384105,99826.0,99825.0,1.17157861]
[1746700553054,0.23688965,99826.0,99825.0,0.012718]
[1746700553503,0.23688965,99826.0,99824.0,5.482e-05]
[1746700553504,0.20035061,99825.0,99824.0,5.482e-05]
[1746700553722,0.23305061,99825.0,99824.0,5.482e-05]
[1746700554146,0.24482889,99825.0,99824.0,5.482e-05]
[1746700557891,0.05147828,99825.0,99824.0,5.482e-05]
[1746700558037,0.25182889,99825.0,99824.0,5.482e-05]
[1746700558646,0.25182889,99825.0,99824.0,0.01035389]
[1746700558846,0.25182889,99825.0,99824.0,5.482e-05]
[1746700560305,0.21912889,99825.0,99824.0,5.482e-05]
[1746700560511,0.23532889,99825.0,99824.0,0.49865482]
[1746700560730,0.25182889,99825.0,99824.0,0.4889429]
[1746700560949,0.25182889,99825.0,99824.0,0.4581429]
[1746700561122,0.24482889,99825.0,99824.0,0.4581429]
[1746700561328,0.24482889,99825.0,99824.0,0.1208429]
[1746700561861,0.24482889,99825.0,99824.0,0.0103429]
[1746700562251,0.24482889,99825.0,99824.0,5.482e-05]
[1746700562660,0.24482889,99825.0,99824.0,0.01035114]
[1746700562867,0.24482889,99825.0,99824.0,5.482e-05]
[1746700563079,0.01177828,99825.0,99824.0,0.0103429]
[1746700563220,0.01577828,99825.0,99824.0,5.25040744]
[1746700563424,0.01577828,99825.0,99824.0,5.26067903]
[1746700563425,0.004,99825.0,99824.0,5.26067903]
[1746700563813,0.00184105,99826.0,99825.0,0.20035061]
[1746700564019,0.00184105,99826.0,99825.0,1.47405061]
[1746700564262,0.00184105,99826.0,99825.0,1.48332494]
[1746700564467,0.00184105,99826.0,99825.0,1.46542494]
[1746700566159,0.00484105,99826.0,99825.0,1.46542494]
[1746700567158,0.00384105,99826.0,99825.0,1.46542494]
[1746700567674,0.00484105,99826.0,99825.0,1.46542494]
[1746700567875,0.00384105,99826.0,99825.0,1.46542494]
[1746700568889,0.00584105,99826.0,99825.0,0.20962494]
[1746700569131,0.00584105,99826.0,99825.0,5.25962494]
[1746700569588,0.00584105,99826.0,99825.0,5.59962494]
[1746700569812,0.00584105,99826.0,99825.0,4.00592494]
[1746700570039,0.00584105,99826.0,99825.0,3.94562494]
[1746700572391,0.00584105,99826.0,99825.0,4.06993294]
[1746700578328,0.00584105,99826.0,99825.0,3.64393294]
[1746700584547,0.001,99851.0,99844.0,0.20031248]
[1746700584548,0.0176,99851.0,99844.0,0.20031248]
[1746700584769,0.22791451,99851.0,99844.0,0.21057036]
[1746700584986,0.02761492,99851.0,99844.0,10.12291336]
[1746700585192,0.0176,99851.0,99844.0,10.12291336]
[1746700585606,0.02761492,99851.0,99844.0,10.12291336]
[1746700585806,0.0176,99851.0,99844.0,6.79850836]
[1746700586002,0.003,99845.0,99844.0,6.79850836]
[1746700586209,0.003,99845.0,99844.0,6.79950836]
[1746700586840,0.003,99845.0,99844.0,6.79850836]
[1746700587504,0.003,99845.0,99844.0,6.80612835]
[1746700589070,0.003,99845.0,99844.0,0.21819035]
[1746700589450,0.003,99845.0,99844.0,10.13053335]
[1746700592348,0.003,99845.0,99844.0,9.17694135]
[1746700594020,0.0357,99845.0,99844.0,3.05222487]
[1746700594223,0.0357,99845.0,99844.0,0.31707187]
[1746700594426,0.23601048,99845.0,99844.0,0.18777787]
[1746700594629,0.20031664,99842.0,99840.0,0.34]
[1746700594850,0.01001572,99843.0,99840.0,0.34]
[1746700594851,0.032,99841.0,99840.0,0.54032051]
[1746700595286,0.032,99841.0,99840.0,0.34]
[1746700595732,0.032,99841.0,99840.0,0.54032051]
[1746700595935,0.032,99841.0,99840.0,0.171395]
[1746700596343,0.032,99841.0,99840.0,0.37171551]
[1746700597220,0.032,99841.0,99840.0,0.38020906]
[1746700597987,0.032,99841.0,99840.0,0.3879043]
[1746700600512,0.032,99841.0,99840.0,0.2165093]
[1746700600741,0.032,99841.0,99840.0,0.4340093]
[1746700601924,0.032,99841.0,99840.0,0.2165093]
[1746700602169,0.032,99841.0,99840.0,0.4229843]
[1746700602364,0.033,99841.0,99840.0,0.4229843]
[1746700602616,0.032,99841.0,99840.0,0.4229843]
[1746700603031,0.033,99841.0,99840.0,0.4229843]
[1746700604347,0.034,99841.0,99840.0,0.4229843]
[1746700604954,0.035,99841.0,99840.0,0.7629843]
[1746700612851,0.2353185,99841.0,99840.0,0.34849355]
[1746700613181,0.25408834,99841.0,99840.0,0.34849355]
[1746700615306,0.25408834,99841.0,99840.0,0.00849355]
[1746700615513,0.44346267,99841.0,99840.0,0.00849355]
[1746700615731,0.21035835,99830.0,99826.0,0.01001743]
[1746700615933,0.21035835,99830.0,99827.0,0.34]
[1746700615934,0.0318,99828.0,99827.0,0.34]
[1746700616135,0.0318,99828.0,99827.0,0.34848407]
[1746700616334,0.0318,99828.0,99827.0,0.54883066]
[1746700616980,0.27764535,99828.0,99827.0,0.00848407]
[1746700617128,0.23214459,99828.0,99827.0,0.01618218]
[1746700617464,0.25091191,99828.0,99827.0,0.00769811]
[1746700617665,0.02661732,99827.0,99824.0,0.01007245]
[1746700617872,0.0159,99826.0,99824.0,0.01007245]
[1746700618090,0.0159,99825.0,99824.0,0.01007245]
[1746700618325,0.03536732,99826.0,99824.0,0.01007245]
[1746700618479,0.03456732,99825.0,99824.0,0.01007245]
[1746700618682,0.0158,99825.0,99824.0,0.01007245]
[1746700619530,0.0168,99825.0,99824.0,5.482e-05]
[1746700620090,0.001,99825.0,99824.0,5.482e-05]
[1746700620697,0.001,99825.0,99824.0,0.00739878]
[1746700625289,0.20436505,99827.0,99824.0,0.00739878]
[1746700625497,0.21986505,99827.0,99824.0,0.00739878]
[1746700625733,0.20035031,99826.0,99824.0,0.00739878]
[1746700626348,0.01951732,99827.0,99824.0,0.00739878]
[1746700626349,0.2208643,99827.0,99825.0,0.34]
[1746700626902,0.2198643,99827.0,99825.0,0.34]
[1746700627407,0.2198643,99827.0,99826.0,0.00940911]
[1746700627752,0.2198643,99827.0,99826.0,0.05657643]
[1746700628287,0.01951732,99827.0,99826.0,0.05657643]
[1746700628469,0.0155,99827.0,99826.0,0.59692503]
[1746700628807,0.0157,99830.0,99827.0,0.01001732]
[1746700629011,0.21604095,99830.0,99828.0,0.20034456]
[1746700629188,0.21604095,99830.0,99827.0,0.01001732]
[1746700629937,0.20034278,99829.0,99827.0,0.01001732]
[1746700630341,0.2103599,99829.0,99826.0,0.20975771]
[1746700630546,0.0154,99829.0,99826.0,0.01942654]
[1746700630972,0.0154,99829.0,99826.0,0.21977475]
[1746700631216,0.0154,99829.0,99827.0,0.34]
[1746700631596,0.0162,99830.0,99827.0,0.35001732]
[1746700632017,0.002,99829.0,99827.0,0.35001732]
[1746700632361,0.0102,99830.0,99827.0,0.01001732]
[1746700632766,0.0112,99830.0,99827.0,0.35001732]
[1746700633009,0.0112,99830.0,99828.0,0.24750356]
[1746700633544,0.20034258,99829.0,99828.0,0.04715923]
[1746700633757,0.21674258,99829.0,99828.0,0.04715923]
[1746700635574,0.23194258,99829.0,99828.0,0.04715923]
[1746700636102,0.23294258,99829.0,99828.0,0.04715923]
[1746700636257,0.23394258,99829.0,99828.0,0.04715923]
[1746700636579,0.23394258,99829.0,99826.0,0.00940911]
[1746700636580,0.23264659,99827.0,99826.0,0.00940911]
[1746700638705,0.23364659,99827.0,99826.0,0.00940911]
[1746700639638,0.22664659,99827.0,99826.0,0.00940911]
[1746700642356,0.22664659,99827.0,99826.0,0.01883084]
[1746700643220,0.24541915,99827.0,99826.0,0.01883084]
[1746700646806,0.23841915,99827.0,99826.0,0.01883084]
[1746700653739,0.23141915,99827.0,99826.0,0.01883084]
[1746700655113,0.05207256,99827.0,99826.0,0.01883084]
[1746700655317,0.05457705,99827.0,99826.0,0.01883084]
[1746700655512,0.05207256,99827.0,99826.0,0.35883084]
[1746700655712,0.05207256,99827.0,99826.0,0.55917944]
[1746700656468,0.0333,99827.0,99826.0,0.55917944]
[1746700656663,0.001,99827.0,99826.0,0.55917944]
[1746700659157,0.0329,99827.0,99826.0,0.55917944]
[1746700660723,0.0259,99827.0,99826.0,0.55917944]
[1746700660919,0.0157,99827.0,99826.0,0.55917944]
[1746700661179,0.01001692,99831.0,99826.0,0.55917944]
[1746700661180,0.00250445,99830.0,99829.0,0.20034258]
[1746700661367,0.01878526,99830.0,99829.0,0.20034258]
[1746700661592,0.01878526,99830.0,99829.0,0.2097503]
[1746700661766,0.03418526,99830.0,99829.0,0.2097503]
[1746700662356,0.03618526,99830.0,99829.0,0.2097503]
[1746700663849,0.05228526,99830.0,99829.0,0.2097503]
[1746700664438,0.05228526,99830.0,99829.0,0.00940772]
[1746700664635,0.05478965,99830.0,99829.0,0.00940772]
[1746700664839,0.02328965,99830.0,99828.0,0.21036141]
[1746700665036,0.0317,99829.0,99828.0,0.55036141]
[1746700665423,0.05048526,99829.0,99828.0,0.55036141]
[1746700667902,0.04348526,99829.0,99828.0,0.55036141]
[1746700668208,0.04448526,99829.0,99828.0,0.55036141]
[1746700668385,0.04548526,99829.0,99828.0,0.55036141]
[1746700668790,0.03628526,99829.0,99828.0,0.55036141]
[1746700669164,0.03878964,99829.0,99828.0,0.55036141]
[1746700671775,0.03878964,99829.0,99828.0,0.34]
[1746700672181,0.03878964,99829.0,99828.0,0.54975676]
[1746700672613,0.05418964,99829.0,99828.0,0.54975676]
[1746700674602,0.05418964,99829.0,99828.0,0.34941217]
[1746700674995,0.03868964,99829.0,99828.0,0.34941217]
[1746700675191,0.23903222,99829.0,99828.0,0.34941217]
[1746700675417,0.23652784,99829.0,99828.0,0.34941217]
[1746700676169,0.23752784,99829.0,99828.0,0.00941217]
[1746700676374,0.20034659,99827.0,99826.0,0.00940911]
[1746700676509,0.20285105,99827.0,99826.0,0.00940911]
[1746700676718,0.23693631,99827.0,99826.0,0.00940911]
[1746700676931,0.23443185,99827.0,99826.0,0.00940911]
[1746700678149,0.25073185,99827.0,99826.0,0.00940911]
[1746700678833,0.21037214,99824.0,99821.0,0.20035785]
[1746700679034,0.00250452,99823.0,99822.0,0.614538]
[1746700679964,0.20035061,99825.0,99822.0,0.82491246]
[1746700680337,0.20285782,99824.0,99822.0,0.01001783]
[1746700680898,0.20285718,99824.0,99822.0,0.21037282]
[1746700681244,0.0025045,99824.0,99822.0,0.21037282]
[1746700681633,0.0025045,99824.0,99822.0,0.21780169]
[1746700681922,0.0025045,99824.0,99823.0,0.20035462]
[1746700682202,0.20034133,99830.0,99826.0,0.01001743]
[1746700682400,0.20034501,99828.0,99826.0,0.01001743]
[1746700682552,0.2103652,99827.0,99823.0,0.21037117]
[1746700682764,0.2103652,99827.0,99824.0,0.2103683]
[1746700682921,0.20034889,99826.0,99824.0,0.01001763]
[1746700683121,0.20034889,99826.0,99823.0,0.0636247]
[1746700683343,0.20035308,99824.0,99822.0,0.00742887]
[1746700683570,0.00250447,99823.0,99821.0,0.01015494]
[1746700683772,0.00250447,99824.0,99822.0,1.980954]
[1746700683964,0.00250447,99824.0,99821.0,0.01015494]
[1746700684169,0.2028571,99824.0,99822.0,2.14923055]
[1746700684407,0.21287473,99824.0,99822.0,0.00735447]
[1746700684745,0.20035462,99823.0,99821.0,0.00013701]
[1746700684948,0.00250447,99823.0,99822.0,2.187621]
[1746700685558,0.00250447,99823.0,99822.0,2.38797763]
[1746700685756,0.00250447,99823.0,99822.0,2.187621]
[1746700685986,0.00250447,99823.0,99822.0,1.910929]
[1746700686877,0.20285909,99823.0,99822.0,1.910929]
[1746700688533,0.20285909,99823.0,99822.0,0.34765433]
[1746700688940,0.20285909,99823.0,99822.0,2.25843333]
[1746700689133,0.21037026,99824.0,99822.0,2.25843333]
[1746700689372,0.20035462,99823.0,99822.0,0.34765433]
[1746700689701,0.21037026,99824.0,99822.0,3.01031333]
[1746700689915,0.21037026,99824.0,99822.0,0.34765433]
[1746700691317,0.20035462,99823.0,99822.0,0.34765433]
[1746700691517,0.20035462,99823.0,99822.0,2.63938533]
[1746700692419,0.21037026,99824.0,99822.0,2.63938533]
[1746700692632,0.21037026,99824.0,99822.0,0.34765433]
[1746700693411,0.20035462,99823.0,99822.0,0.34765433]
[1746700693647,0.20035462,99823.0,99822.0,2.98023733]
[1746700694147,0.21037026,99824.0,99822.0,2.98023733]
[1746700694346,0.21037026,99824.0,99822.0,0.34765433]
[1746700694897,0.01001753,99825.0,99822.0,0.34765433]
[1746700695102,0.01001753,99825.0,99822.0,0.35767216]
[1746700695472,0.21036905,99825.0,99822.0,0.34765433]
[1746700695678,0.21036761,99826.0,99822.0,0.34765433]
[1746700695823,0.20035071,99825.0,99822.0,0.35767216]
[1746700696023,0.21036761,99826.0,99823.0,0.2003544]
[1746700696203,0.20035018,99826.0,99822.0,0.55802777]
[1746700696398,0.21036761,99826.0,99823.0,0.21037075]
[1746700696923,0.20035107,99825.0,99822.0,0.55802777]
[1746700697147,0.20035085,99825.0,99822.0,0.55802777]
[1746700697389,0.20035462,99823.0,99822.0,0.34765433]
[1746700697593,0.21036814,99825.0,99822.0,3.00530033]
[1746700697795,0.21036814,99825.0,99822.0,0.34765433]
[1746700697933,0.01001743,99826.0,99823.0,0.21037223]
[1746700698113,0.21036638,99826.0,99823.0,0.21037223]
[1746700698816,0.21036818,99825.0,99822.0,0.34765433]
[1746700699963,0.01001753,99825.0,99822.0,0.55802833]
[1746700701105,0.01001753,99825.0,99822.0,0.21802833]
[1746700701680,0.01001753,99825.0,99823.0,0.20035416]
[1746700701877,0.21036607,99826.0,99823.0,0.20035416]
[1746700702282,0.20034701,99827.0,99824.0,0.01001763]
[1746700702483,0.21036307,99828.0,99824.0,0.21036856]
[1746700702679,0.20034672,99827.0,99824.0,0.2103701]
[1746700703335,0.19334672,99827.0,99825.0,0.34]
[1746700704037,0.2003486,99826.0,99825.0,0.34]
[1746700704401,0.2003486,99826.0,99824.0,0.01001763]
[1746700705569,0.2013486,99826.0,99824.0,0.01001763]
[1746700706329,0.21136603,99826.0,99823.0,0.5403545]
[1746700706943,0.21336603,99826.0,99823.0,0.5403545]
[1746700707345,0.21236603,99826.0,99823.0,0.5403545]
[1746700707801,0.20035226,99825.0,99823.0,0.34]
[1746700708098,0.01001753,99825.0,99822.0,0.35767216]
[1746700708449,0.21036846,99825.0,99822.0,0.35767216]
[1746700710364,0.20035093,99825.0,99822.0,0.55802877]
[1746700710742,0.21036846,99825.0,99822.0,0.55802877]
[1746700711656,0.21036846,99825.0,99822.0,0.01767216]
[1746700713139,0.21036846,99825.0,99822.0,0.21802874]
[1746700713942,0.21036846,99825.0,99824.0,0.34]
[1746700715493,0.21136846,99825.0,99823.0,0.34]
[1746700716188,0.20035262,99824.0,99823.0,0.34]
[1746700717534,0.21036846,99825.0,99823.0,0.34]
[1746700719498,0.001,99826.0,99823.0,0.34]
[1746700719883,0.001,99826.0,99824.0,0.20035262]
[1746700721252,0.001,99826.0,99825.0,0.54035061]
[1746700721616,0.002,99826.0,99825.0,0.54035061]
[1746700722199,0.001,99826.0,99825.0,0.54035061]
[1746700722617,0.002,99826.0,99825.0,0.54035061]
[1746700723798,0.003,99826.0,99825.0,0.54035061]
[1746700724079,0.003,99826.0,99825.0,9.39520861]
[1746700724254,0.003,99826.0,99825.0,9.42700861]
[1746700725582,0.00601642,99836.0,99833.0,0.21034973]
[1746700725811,0.20634503,99836.0,99834.0,2.884871]
[1746700726561,0.20634503,99836.0,99833.0,0.21034973]
[1746700726791,0.20634503,99836.0,99834.0,2.883868]
[1746700727011,0.20734503,99836.0,99834.0,2.883868]
[1746700727528,0.20634503,99836.0,99834.0,2.883868]
[1746700727966,0.20834503,99836.0,99834.0,2.883868]
[1746700728394,0.002,99836.0,99835.0,0.20033054]
[1746700729280,0.001,99836.0,99835.0,0.20033054]
[1746700729947,0.01001622,99838.0,99836.0,0.20032849]
[1746700730379,0.01001632,99837.0,99834.0,0.20033255]
[1746700730568,0.20132863,99836.0,99834.0,0.20033255]
[1746700730804,0.001,99836.0,99835.0,0.20033054]
[1746700731006,0.002,99836.0,99835.0,0.20033054]
[1746700731199,0.002,99836.0,99833.0,0.01001672]
[1746700731510,0.001,99836.0,99834.0,3.250742]
[1746700731930,0.001,99836.0,99834.0,3.45107396]
[1746700732072,0.001,99836.0,99834.0,0.2003324]
[1746700732276,0.20132944,99836.0,99833.0,0.21034941]
[1746700732500,0.20033054,99835.0,99834.0,3.256756]
[1746700732778,0.21034706,99835.0,99834.0,2.980097]
[1746700732980,0.20033255,99834.0,99833.0,2.980097]
[1746700734499,0.20033255,99834.0,99833.0,2.81476365]
[1746700734923,0.20133255,99834.0,99833.0,2.81476365]
[1746700735128,0.20233255,99834.0,99833.0,2.81476365]
[1746700735301,0.20233255,99834.0,99833.0,2.831744]
[1746700735508,0.20233255,99834.0,99833.0,2.606207]
[1746700738955,0.20233255,99834.0,99833.0,2.61198141]
[1746700744689,0.20233255,99834.0,99833.0,1.95742341]
[1746700744887,0.23363255,99834.0,99833.0,0.00577441]
[1746700745439,0.20034258,99829.0,99828.0,0.04727081]
[1746700745677,0.20034258,99829.0,99828.0,0.61081281]
[1746700745903,0.20034258,99829.0,99828.0,0.39303963]
[1746700746109,0.21574258,99829.0,99828.0,0.39303963]
[1746700747495,0.20034258,99829.0,99828.0,0.39303963]
[1746700747696,0.19334258,99829.0,99828.0,0.39303963]
[1746700750561,0.19334258,99829.0,99828.0,0.34576882]
[1746700754805,0.18634258,99829.0,99828.0,0.34576882]
[1746700756182,0.20224258,99829.0,99828.0,0.34576882]
[1746700757385,0.18634258,99829.0,99828.0,0.34576882]
[1746700757779,0.20224258,99829.0,99828.0,0.34576882]
[1746700757981,0.20224258,99829.0,99828.0,0.39304408]
[1746700758766,0.25520406,99829.0,99828.0,0.39304408]
[1746700758972,0.21884258,99829.0,99828.0,0.39304408]
[1746700759595,0.21884258,99829.0,99828.0,0.05304408]
[1746700759795,0.21884258,99829.0,99828.0,0.04727526]
[1746700761173,0.21884258,99829.0,99828.0,0.06127526]
[1746700761724,0.21184258,99829.0,99828.0,0.06127526]
[1746700764455,0.21184258,99829.0,99828.0,0.014]
[1746700765072,0.29613225,99829.0,99828.0,0.014]
[1746700765465,0.21184258,99829.0,99828.0,0.014]
[1746700768892,0.20484258,99829.0,99828.0,0.014]
[1746700769795,0.20584258,99829.0,99828.0,0.014]
[1746700772236,0.3065095,99829.0,99828.0,0.014]
[1746700783504,0.32527315,99829.0,99828.0,0.007]
[1746700783702,0.42090588,99829.0,99828.0,0.207]
[1746700783987,0.32527315,99829.0,99828.0,0.2049756]
[1746700784398,0.3065095,99829.0,99828.0,0.2049756]
[1746700784824,0.3065095,99829.0,99828.0,0.2119756]
[1746700784959,0.3065095,99829.0,99828.0,0.2179756]
[1746700785813,0.3065095,99829.0,99828.0,0.2049756]
[1746700785968,0.33680557,99829.0,99828.0,0.2099756]
[1746700787316,0.33680557,99829.0,99828.0,0.2159756]
[1746700787689,0.21042495,99799.0,99793.0,0.19775421]
[1746700787901,0.21042505,99798.0,99795.0,0.03175625]
[1746700788139,0.21042539,99798.0,99796.0,1.023807]
[1746700788345,0.21042539,99798.0,99796.0,1.0525387]
[1746700788550,0.21042539,99798.0,99797.0,0.962639]
[1746700788913,0.21042539,99798.0,99797.0,0.914507]
[1746700789130,0.20040682,99797.0,99796.0,0.918518]
[1746700790201,0.20040682,99797.0,99796.0,0.657804]
[1746700791027,0.19340682,99797.0,99796.0,0.657804]
[1746700791199,0.19540682,99797.0,99796.0,0.657804]
[1746700791417,0.19540682,99797.0,99796.0,0.66187965]
[1746700791603,0.20240682,99797.0,99796.0,0.66187965]
[1746700792008,0.20340682,99797.0,99796.0,0.69060268]
[1746700792850,0.40340682,99797.0,99796.0,0.69060268]
[1746700793741,0.40340682,99797.0,99796.0,0.6981917]
[1746700794685,0.203,99797.0,99796.0,0.6981917]
[1746700795097,0.203,99797.0,99796.0,0.89860053]
[1746700795333,0.203,99797.0,99796.0,0.24079653]
[1746700795703,0.203,99797.0,99796.0,2.59625253]
[1746700795920,0.203,99797.0,99796.0,2.54812053]
[1746700796974,0.203,99797.0,99796.0,2.3477117]
[1746700797117,0.203,99797.0,99796.0,2.54812053]
[1746700797327,0.203,99797.0,99796.0,2.57842053]
[1746700798027,0.196,99797.0,99796.0,2.57842053]
[1746700798422,0.196,99797.0,99796.0,2.3780117]
[1746700798651,0.196,99797.0,99796.0,2.57842053]
[1746700799852,0.196,99797.0,99796.0,7.86499124]
[1746700800054,0.196,99797.0,99796.0,7.83365624]
[1746700800834,0.196,99797.0,99796.0,8.23365624]
[1746700801847,0.196,99797.0,99796.0,8.19852053]
[1746700803672,0.196,99797.0,99796.0,7.79852053]
[1746700803878,0.196,99797.0,99796.0,6.59302053]
[1746700803994,0.196,99797.0,99796.0,6.50972053]
[1746700804639,0.196,99797.0,99796.0,4.91842053]
[1746700805367,0.189,99797.0,99796.0,4.91842053]
[1746700805772,0.189,99797.0,99796.0,7.79852053]
[1746700806165,0.189,99797.0,99796.0,7.77872053]
[1746700808641,0.189,99797.0,99796.0,7.60072053]
[1746700808840,0.189,99797.0,99796.0,7.4730051]
[1746700809247,0.189,99797.0,99796.0,7.8730051]
[1746700809448,0.189,99797.0,99796.0,7.88036744]
[1746700810078,0.189,99797.0,99796.0,7.87626212]
[1746700810285,0.189,99797.0,99796.0,7.67626212]
[1746700811574,0.189,99797.0,99796.0,7.70549765]
[1746700812364,0.182,99797.0,99796.0,7.70549765]
[1746700816629,0.172,99797.0,99796.0,7.70549765]
[1746700819381,0.165,99797.0,99796.0,7.70549765]
[1746700821885,0.165,99797.0,99796.0,10.1123347]
[1746700826115,0.165,99797.0,99796.0,10.21300162]
[1746700826329,0.01,99823.0,99819.0,0.21038078]
[1746700826505,0.21037269,99823.0,99820.0,3.790558]
[1746700826869,0.20035864,99821.0,99820.0,3.529901]
[1746700826991,0.20035864,99821.0,99819.0,0.01001813]
[1746700827187,0.20035864,99821.0,99820.0,3.790558]
[1746700827830,0.21037491,99822.0,99820.0,3.529901]
[1746700828717,0.20035864,99821.0,99820.0,3.529901]
[1746700828923,0.21037491,99822.0,99820.0,3.529901]
[1746700829201,0.21237491,99822.0,99820.0,3.529901]
[1746700829602,0.21037491,99822.0,99820.0,3.529901]
[1746700829802,0.002,99821.0,99820.0,3.529901]
[1746700830825,0.002,99821.0,99820.0,3.73026164]
[1746700831240,0.2023567,99822.0,99820.0,3.73892052]
[1746700831437,0.002,99822.0,99820.0,0.20901952]
[1746700831864,0.002,99821.0,99820.0,0.00865888]
[1746700832042,0.004,99821.0,99820.0,4.17716988]
[1746700832416,0.20035671,99822.0,99820.0,4.17716988]
[1746700832597,0.20035671,99822.0,99820.0,0.00865888]
[1746700832740,0.20435671,99822.0,99820.0,0.00865888]
[1746700832936,0.002,99822.0,99821.0,0.20035864]
[1746700833147,0.01391,99827.0,99825.0,0.34]
[1746700833560,0.01391,99827.0,99826.0,0.5403486]
[1746700834420,0.01391,99827.0,99826.0,0.54039423]
[1746700834911,0.01391,99827.0,99826.0,0.54902868]
[1746700835122,0.01691,99827.0,99826.0,0.54902868]
[1746700835704,0.01991,99827.0,99826.0,0.54902868]
[1746700835900,0.01991,99827.0,99826.0,4.77395668]
[1746700836632,0.01691,99827.0,99826.0,4.77395668]
[1746700836775,0.01891,99827.0,99826.0,4.77395668]
[1746700837203,0.01891,99827.0,99826.0,4.76127568]
[1746700837412,0.01891,99827.0,99826.0,3.24659168]
[1746700837619,0.01591,99827.0,99826.0,3.04710568]
[1746700837822,0.01791,99827.0,99826.0,3.04710568]
[1746700838502,0.01391,99827.0,99826.0,3.04710568]
[1746700838924,0.01591,99827.0,99826.0,3.04710568]
[1746700839321,0.01491,99827.0,99826.0,3.04710568]
[1746700839784,0.01591,99827.0,99826.0,3.04710568]
[1746700851809,0.01591,99827.0,99826.0,2.84675708]
[1746700853204,0.21625659,99827.0,99826.0,2.84675708]
[1746700853399,0.01591,99827.0,99826.0,2.19116308]
[1746700854446,0.21625659,99827.0,99826.0,1.98696104]
[1746700859622,0.21625659,99827.0,99826.0,0.00868008]
[1746700860016,0.21625659,99827.0,99826.0,1.97546708]
[1746700861496,0.01591,99827.0,99826.0,1.97546708]
[1746700862470,0.01591,99827.0,99826.0,2.17581568]
[1746700862774,0.01591,99827.0,99826.0,1.97546708]
[1746700865077,0.21625659,99827.0,99826.0,1.97546708]
[1746700865252,0.01591,99827.0,99826.0,1.97546708]
[1746700865456,0.01591,99827.0,99826.0,2.17581568]
[1746700866948,0.21625659,99827.0,99826.0,1.97546708]
[1746700867379,0.01591,99827.0,99826.0,1.97546708]
[1746700868460,0.01591,99827.0,99826.0,2.17581568]
[1746700868901,0.01591,99827.0,99826.0,1.97546708]
[1746700869945,0.01591,99827.0,99826.0,2.17581568]
[1746700870427,0.01591,99827.0,99826.0,0.20902868]
[1746700870654,0.01591,99827.0,99826.0,2.92163168]
[1746700871861,0.01591,99827.0,99826.0,0.20902868]
[1746700872126,0.01591,99827.0,99826.0,3.38092068]
[1746700872365,0.01591,99827.0,99826.0,8.32735639]
[1746700872595,0.01591,99827.0,99826.0,8.29222068]
[1746700874099,0.01491,99827.0,99826.0,8.29222068]
[1746700874656,0.01391,99827.0,99826.0,8.29222068]
[1746700877264,0.01391,99827.0,99826.0,8.69222068]
[1746700878980,0.01391,99827.0,99826.0,9.39322068]
[1746700879178,0.01391,99827.0,99826.0,9.39422068]
[1746700879791,0.01391,99827.0,99826.0,9.4948876]
[1746700879983,0.001,99841.0,99840.0,0.54032051]
[1746700880191,0.001,99841.0,99840.0,9.64534851]
[1746700880426,0.001,99841.0,99840.0,9.65379494]
[1746700881104,0.003,99841.0,99840.0,9.65379494]
[1746700881519,0.005,99841.0,99840.0,9.65379494]
[1746700882313,0.001,99841.0,99840.0,9.65379494]
[1746700882548,0.003,99841.0,99840.0,9.65379494]
[1746700883682,0.003,99841.0,99840.0,10.05379494]
[1746700885334,0.001,99841.0,99840.0,10.05379494]
[1746700887636,0.001,99841.0,99840.0,10.06889494]
[1746700889258,0.001,99841.0,99840.0,9.66889494]
[1746700890544,0.001,99841.0,99840.0,9.65379494]
[1746700893150,0.001,99841.0,99840.0,10.05379494]
[1746700893519,0.001,99841.0,99840.0,0.94876694]
[1746700893745,0.001,99841.0,99840.0,10.05379494]
[1746700894946,0.001,99841.0,99840.0,9.48629494]
[1746700895345,0.0162,99841.0,99840.0,2.34380294]
[1746700895734,0.0162,99841.0,99840.0,2.29970594]
[1746700897990,0.0162,99841.0,99840.0,2.09938543]
[1746700898214,0.0162,99841.0,99840.0,2.29970594]